bitfinex-derivatives/quotes_ETHF0:USTF0_20250316
["timestamp","ask_amount","ask_price","bid_price","bid_amount"]
[1742095257885,2.37463,1927.6,1927.5,1.03756]
[1742095259684,1.03761,1927.5,1927.4,1.0376]
[1742095259884,3.15161,1927.5,1927.4,1.0376]
[1742095261685,1.03764,1927.4,1927.3,1.03765]
[1742095261885,1.03773,1927.3,1927.2,1.03773]
[1742095262387,1.03775,1927.2,1927.1,2.47676]
[1742095262586,1.71475,1927.2,1927.1,2.47676]
[1742095262891,1.71475,1927.2,1927.1,1.03776]
[1742095263089,1.71475,1927.2,1927.1,2.47676]
[1742095263591,0.677,1927.2,1927.1,2.47676]
[1742095263981,1.3764,1927.3,1927.2,1.03775]
[1742095264185,1.3764,1927.3,1927.2,3.07625]
[1742095274294,2.61407699,1927.6,1927.5,1.03759]
[1742095274596,2.7197828,1927.6,1927.5,1.03759]
[1742095274984,3.65160699,1927.6,1927.5,1.03759]
[1742095275189,2.61407699,1927.6,1927.5,1.03759]
[1742095275495,2.7197828,1927.6,1927.5,1.03759]
[1742095275699,2.052,1927.6,1927.5,1.03759]
[1742095276198,2.052,1927.6,1927.5,1.70029]
[1742095280394,1.375,1927.6,1927.5,1.70029]
[1742095280999,1.375,1927.6,1927.5,3.14779]
[1742095286799,1.375,1927.6,1927.5,2.48509]
[1742095287412,2.0531,1927.6,1927.5,2.48509]
[1742095287598,3.09063,1927.6,1927.5,1.03759]
[1742095291107,2.0531,1927.6,1927.5,2.45369]
[1742095291400,3.09063,1927.6,1927.5,2.45369]
[1742095291703,2.0531,1927.6,1927.5,2.45369]
[1742095292504,3.09063,1927.6,1927.5,2.45369]
[1742095293306,3.09063,1927.6,1927.5,1.03759]
[1742095293805,1.03759,1927.5,1927.4,1.03761]
[1742095294003,3.07569,1927.5,1927.4,1.03761]
[1742095295012,2.0381,1927.5,1927.4,1.03761]
[1742095297105,3.07569,1927.5,1927.4,1.03761]
[1742095298100,2.0381,1927.5,1927.4,1.03761]
[1742095299113,3.07569,1927.5,1927.4,1.03761]
[1742095300007,2.0381,1927.5,1927.4,1.03761]
[1742095300513,3.07569,1927.5,1927.4,1.03761]
[1742095301010,2.0381,1927.5,1927.4,1.03761]
[1742095301212,2.0381,1927.5,1927.4,1.71231]
[1742095301513,2.0381,1927.5,1927.4,1.03761]
[1742095302011,3.07569,1927.5,1927.4,2.41681]
[1742095302204,3.07569,1927.5,1927.4,1.03761]
[1742095304410,1.03764,1927.4,1927.3,1.03767]
[1742095304714,2.46544,1927.4,1927.3,1.03767]
[1742095308610,1.0377,1927.3,1927.2,1.03771]
[1742095308810,3.0998,1927.3,1927.2,1.03771]
[1742095309217,3.0998,1927.3,1926.8,2.59488]
[1742095309218,11.0829,1927.3,1926.3,5.80331]
[1742095309514,4.2458,1926.8,1926.6,1.03807]
[1742095309715,2.39402,1926.7,1926.6,1.03807]
[1742095309917,3.84302,1926.7,1926.6,1.03807]
[1742095310310,2.805,1926.7,1926.6,1.03807]
[1742095311508,1.449,1926.7,1926.6,4.24587]
[1742095312613,0.00779788,1926.8,1926.7,1.03802]
[1742095312823,0.00779788,1926.8,1926.7,3.76132]
[1742095320716,0.00779788,1926.8,1926.5,0.00779788]
[1742095320927,1.72708788,1926.8,1926.7,1.03802]
[1742095321116,3.14408788,1926.8,1926.7,1.03802]
[1742095321819,3.14408788,1926.8,1926.5,1.42499788]
[1742095322117,1.3654,1926.7,1926.6,1.03807]
[1742095325222,0.00779788,1926.8,1926.7,1.03802]
[1742095325416,1.33649788,1926.8,1926.7,1.03802]
[1742095325618,1.33649788,1926.8,1926.7,2.47922]
[1742095325924,1.33649788,1926.8,1926.7,3.16932]
[1742095343841,1.33649788,1926.8,1926.7,1.03802]
[1742095344045,1.33649788,1926.8,1926.6,1.03804]
[1742095344244,1.03802,1926.7,1926.6,1.03805]
[1742095345045,2.37449788,1926.8,1926.6,1.03805]
[1742095345347,2.37449788,1926.8,1926.7,1.03802]
[1742095345546,1.04579788,1926.8,1926.7,1.03802]
[1742095346352,0.00779788,1926.8,1926.7,1.03802]
[1742095347144,0.00779788,1926.8,1926.7,2.42452]
[1742095350051,4.21301179,1927.2,1927.1,1.0378]
[1742095350251,3.2078,1927.2,1927.1,1.0378]
[1742095351649,3.2078,1927.2,1927.1,2.4013]
[1742095353554,1.00521179,1927.5,1927.4,1.03764]
[1742095353955,1.03745,1927.8,1927.7,1.03748]
[1742095354652,1.03746,1927.8,1927.6,0.00779788]
[1742095355056,1.03746,1927.8,1927.7,1.03748]
[1742095355954,2.41596,1927.8,1927.7,1.03748]
[1742095356455,3.42117179,1927.8,1927.7,1.03748]
[1742095356659,4.35206979,1927.8,1927.7,1.03748]
[1742095356954,3.31460979,1927.8,1927.7,1.03748]
[1742095357343,3.31460979,1927.8,1927.7,2.37618]
[1742095357550,2.38371179,1927.8,1927.7,2.37618]
[1742095357957,1.3785,1927.8,1927.7,2.37618]
[1742095367060,2.41597,1927.8,1927.6,1.04530788]
[1742095367358,2.41597,1927.8,1927.7,1.03748]
[1742095367559,1.03747,1927.8,1927.7,1.03748]
[1742095368259,4.94690788,1927.9,1927.8,1.03743]
[1742095368562,8.25890788,1927.9,1927.8,1.03743]
[1742095370254,8.25890788,1927.9,1927.7,1.03743]
[1742095370255,1.03745,1927.8,1927.7,1.03743]
[1742095370760,8.25891788,1927.9,1927.8,1.03743]
[1742095373863,1.03743,1927.8,1927.7,1.4426]
[1742095374363,8.25891788,1927.9,1927.8,1.03743]
[1742095374561,1.03743,1927.8,1927.7,2.48004]
[1742095375465,8.25889788,1927.9,1927.8,1.03743]
[1742095377165,0.70169788,1927.9,1927.8,1.03743]
[1742095377367,0.00779788,1927.9,1927.8,2.41623]
[1742095382158,0.00779788,1927.9,1927.8,3.85863]
[1742095385266,1.93259229,1928.2,1928.1,1.03726]
[1742095385468,1.00310734,1928.2,1928.1,4.24506]
[1742095386170,1.3205,1928.3,1928.2,1.03721]
[1742095386470,1.3205,1928.3,1928.2,2.43121]
[1742095396972,1.3205,1928.3,1928.2,1.03721]
[1742095397681,1.03726,1928.1,1928.0,1.03729]
[1742095398276,1.4483,1928.1,1928.0,1.03732]
[1742095398476,1.03732,1928.0,1927.9,4.24515]
[1742095399279,2.48559,1928.1,1928.0,1.03732]
[1742095399480,1.4483,1928.1,1928.0,1.03732]
[1742095399680,1.4483,1928.1,1928.0,2.42392]
[1742095399879,1.4483,1928.1,1928.0,3.12292]
[1742095400683,2.48556,1928.1,1928.0,3.12292]
[1742095400884,1.03732,1928.0,1927.9,4.24514]
[1742095401086,2.41442,1928.0,1927.9,4.24514]
[1742095401384,1.3771,1928.0,1927.9,4.24514]
[1742095401881,2.41442,1928.0,1927.9,4.24514]
[1742095409389,2.41442,1928.0,1927.9,1.03734]
[1742095411186,1.03737,1927.9,1927.8,2.46901]
[1742095411391,3.04987,1927.9,1927.8,2.46901]
[1742095411591,3.73587,1927.9,1927.8,2.46901]
[1742095413800,2.6985,1927.9,1927.8,2.46901]
[1742095416906,1.3336,1927.9,1927.8,2.46901]
[1742095417108,1.00310734,1928.1,1928.0,1.03732]
[1742095417498,1.4042,1928.1,1928.0,1.03732]
[1742095417698,1.4042,1928.1,1928.0,1.74762]
[1742095417900,1.4042,1928.1,1928.0,3.19052]
[1742095418606,5.5099854,1928.4,1928.3,1.03716]
[1742095418607,8.92826,1928.4,1928.3,1.03716]
[1742095418803,3.3393454,1928.4,1928.3,1.03716]
[1742095419003,2.40946,1928.4,1928.3,1.03716]
[1742095419203,1.93299274,1928.5,1928.4,1.0371]
[1742095419401,1.00310734,1928.5,1928.4,1.0371]
[1742095419599,5.5099854,1928.6,1928.2,3.30311]
[1742095419600,6.51309274,1928.6,1928.5,1.03705]
[1742095420001,5.9503,1928.6,1928.5,1.03705]
[1742095420710,2.7425,1928.6,1928.5,1.03705]
[1742095422606,2.7425,1928.6,1928.4,2.39966]
[1742095422911,1.3257,1928.5,1928.4,2.39966]
[1742095423106,1.3257,1928.5,1928.3,4.95524]
[1742095423307,1.0371,1928.4,1928.3,6.30484]
[1742095423506,2.36279,1928.5,1928.4,1.0371]
[1742095423703,1.0371,1928.4,1928.3,6.30482]
[1742095424013,1.03725,1928.2,1927.8,5.80134]
[1742095424206,1.6947,1928.3,1928.1,2.38681]
[1742095425510,1.6947,1928.3,1928.2,1.03721]
[1742095425710,1.6947,1928.3,1928.2,2.47241]
[1742095426009,1.6947,1928.3,1928.2,1.4352]
[1742095426803,1.6947,1928.3,1928.2,2.47241]
[1742095427199,1.6947,1928.3,1928.2,1.4352]
[1742095427808,1.0372,1928.3,1928.2,2.47241]
[1742095431212,1.0372,1928.3,1928.2,1.4352]
[1742095431410,1.0372,1928.3,1928.2,2.47241]
[1742095431608,1.0372,1928.3,1928.2,1.4352]
[1742095435115,4.245,1928.3,1928.2,1.4352]
[1742095435514,4.9512,1928.3,1928.2,1.4352]
[1742095435903,6.3058,1928.3,1928.2,1.4352]
[1742095438417,7.23559241,1928.3,1928.2,1.4352]
[1742095439015,6.3058,1928.3,1928.2,1.4352]
[1742095439525,7.30883561,1928.3,1928.2,1.4352]
[1742095439821,8.23890623,1928.3,1928.2,1.4352]
[1742095440022,1.03721,1928.2,1928.1,1.03724]
[1742095440221,3.07381,1928.2,1928.1,1.03724]
[1742095441224,1.366,1928.2,1928.1,1.03724]
[1742095446930,1.00303561,1928.4,1928.3,1.03716]
[1742095447529,6.90522823,1928.5,1928.4,1.0371]
[1742095448429,4.98372823,1928.5,1928.4,1.0371]
[1742095449524,4.35868623,1928.5,1928.4,1.0371]
[1742095450531,3.32160623,1928.5,1928.4,1.0371]
[1742095450727,2.39153561,1928.5,1928.4,1.0371]
[1742095450926,1.3885,1928.5,1928.4,2.4819]
[1742095451628,2.42555,1928.5,1928.4,2.4819]
[1742095452233,2.42555,1928.5,1928.4,1.0371]
[1742095452526,1.3885,1928.5,1928.3,1.4448]
[1742095452828,2.3513,1928.4,1928.3,2.48192]
[1742095453633,2.3513,1928.4,1928.3,1.03712]
[1742095454322,2.3513,1928.4,1928.3,2.41622]
[1742095454519,2.3513,1928.4,1928.3,1.03716]
[1742095454735,1.03716,1928.3,1928.2,2.40206]
[1742095454936,3.04306,1928.3,1928.2,1.03716]
[1742095455141,3.73466,1928.3,1928.2,1.03716]
[1742095455637,3.73466,1928.3,1928.2,2.41626]
[1742095455932,2.6975,1928.3,1928.2,2.41626]
[1742095459037,3.73466,1928.3,1928.2,2.41626]
[1742095459337,2.6975,1928.3,1928.2,2.41626]
[1742095461138,3.73466,1928.3,1928.2,1.03716]
[1742095461731,1.03721,1928.2,1928.1,2.0062]
[1742095461930,1.4366,1928.2,1928.1,1.70253]
[1742095470931,2.0984,1928.2,1928.1,1.70253]
[1742095475939,2.0984,1928.2,1928.1,3.02503]
[1742095476649,1.4366,1928.2,1928.1,3.02503]
[1742095486050,2.1045,1928.2,1928.1,3.02503]
[1742095488556,1.4366,1928.2,1928.1,3.02503]
[1742095495061,2.47381,1928.2,1928.1,3.02503]
[1742095495459,1.4366,1928.2,1928.1,3.02503]
[1742095495861,2.47381,1928.2,1928.1,3.02503]
[1742095496062,1.4366,1928.2,1928.1,3.02503]
[1742095500358,1.03737,1927.9,1927.8,3.2078]
[1742095500558,1.03737,1927.9,1927.8,4.24523]
[1742095502659,1.03743,1927.8,1927.7,2.35986]
[1742095502866,1.03748,1927.7,1927.6,4.25310788]
[1742095503065,1.75208,1927.7,1927.6,4.25310788]
[1742095504369,0.7146,1927.7,1927.6,4.25310788]
[1742095504862,2.0548,1927.7,1927.6,4.25310788]
[1742095505059,2.0548,1927.7,1927.6,5.61710788]
[1742095508564,1.3402,1927.7,1927.6,5.61710788]
[1742095508964,1.71728494,1928.0,1927.9,1.03737]
[1742095509166,1.00538494,1928.0,1927.9,1.03737]
[1742095509370,3.2078,1928.1,1928.0,1.03732]
[1742095509567,1.71728494,1928.3,1928.2,1.03721]
[1742095509871,1.03711,1928.4,1928.3,1.03712]
[1742095510063,4.34609,1928.5,1928.4,1.0371]
[1742095510471,5.34833547,1928.5,1928.4,1.0371]
[1742095510862,5.34833547,1928.5,1928.3,1.03712]
[1742095510863,1.0371,1928.4,1928.3,1.03712]
[1742095511468,1.3999,1928.4,1928.3,2.39822]
[1742095511977,2.437,1928.4,1928.3,2.39822]
[1742095513065,1.00224547,1928.5,1928.4,1.0371]
[1742095513267,2.40214547,1928.5,1928.4,2.3982]
[1742095513668,4.11809547,1928.5,1928.4,2.3982]
[1742095513867,3.08104547,1928.5,1928.3,1.03712]
[1742095514062,2.71819547,1928.5,1928.4,2.4823]
[1742095514373,3.64713894,1928.5,1928.4,2.4823]
[1742095514558,3.64713894,1928.5,1928.4,1.4452]
[1742095515573,3.64713894,1928.5,1928.4,2.4823]
[1742095515973,3.64713894,1928.5,1928.4,1.4452]
[1742095516372,3.64713894,1928.5,1928.4,2.4823]
[1742095518069,2.71819547,1928.5,1928.4,2.4823]
[1742095518273,2.61008894,1928.5,1928.4,2.4823]
[1742095518779,1.93118894,1928.5,1928.4,2.4823]
[1742095518977,1.00224547,1928.5,1928.4,2.4823]
[1742095519177,5.05794,1928.6,1928.5,1.03705]
[1742095519376,5.05794,1928.6,1928.5,2.44405]
[1742095519779,1.0371,1928.4,1928.3,1.03711]
[1742095519984,1.0371,1928.5,1928.4,1.03709]
[1742095520177,2.03934547,1928.5,1928.4,1.03709]
[1742095520378,2.96828894,1928.5,1928.4,1.03709]
[1742095522284,1.0371,1928.4,1928.3,2.44412]
[1742095522582,1.7574,1928.4,1928.3,2.44412]
[1742095522881,1.7574,1928.4,1928.3,1.407]
[1742095523583,1.03716,1928.3,1928.2,1.72526]
[1742095523882,1.71056,1928.3,1928.2,1.3763]
[1742095524282,1.71056,1928.3,1928.1,3.2078]
[1742095524283,1.03721,1928.2,1928.1,3.2078]
[1742095524884,1.03729,1928.1,1928.0,1.03729]
[1742095525078,1.03729,1928.1,1928.0,2.41359]
[1742095526275,1.03726,1928.1,1928.0,2.41359]
[1742095526878,2.44496,1928.1,1928.0,2.41359]
[1742095529586,3.12586,1928.1,1928.0,2.41359]
[1742095530882,2.0886,1928.1,1928.0,2.41359]
[1742095531386,1.4077,1928.1,1928.0,2.41359]
[1742095531780,2.44496,1928.1,1928.0,2.41359]
[1742095532089,1.4077,1928.1,1928.0,2.41359]
[1742095532287,2.44496,1928.1,1928.0,2.41359]
[1742095532474,1.4077,1928.1,1928.0,2.41359]
[1742095533087,2.44496,1928.1,1928.0,2.41359]
[1742095535094,3.14756,1928.1,1928.0,2.41359]
[1742095537687,2.1103,1928.1,1928.0,2.41359]
[1742095538084,1.4077,1928.1,1928.0,2.41359]
[1742095540988,2.37677,1928.3,1928.2,1.03721]
[1742095542902,3.69917,1928.3,1928.2,2.40181]
[1742095543901,2.662,1928.3,1928.2,2.40181]
[1742095545899,3.69916,1928.3,1928.2,2.40181]
[1742095549898,1.03721,1928.2,1928.1,1.03722]
[1742095550103,2.38541,1928.2,1928.1,1.03722]
[1742095550606,1.03726,1928.1,1928.0,1.03728]
[1742095550806,2.47486,1928.1,1928.0,1.03728]
[1742095551217,2.47486,1928.1,1928.0,2.37408]
[1742095551417,2.47486,1928.1,1928.0,1.03728]
[1742095552411,2.47486,1928.1,1928.0,2.37408]
[1742095555812,1.4376,1928.1,1928.0,2.37408]
[1742095557216,2.47486,1928.1,1928.0,2.37408]
[1742095558423,1.4376,1928.1,1928.0,1.03728]
[1742095558722,2.47486,1928.1,1928.0,2.44868]
[1742095560514,2.47486,1928.1,1928.0,1.03728]
[1742095562618,1.4376,1928.1,1928.0,2.48758]
[1742095562818,2.47486,1928.1,1928.0,2.48758]
[1742095567029,1.4376,1928.1,1928.0,2.48758]
[1742095573531,1.3396,1928.3,1928.2,1.03721]
[1742095573729,6.28029241,1928.4,1928.3,1.03716]
[1742095574039,5.34936525,1928.4,1928.3,1.03716]
[1742095574332,1.96806716,1928.4,1928.3,1.03716]
[1742095574527,1.03714,1928.4,1928.3,1.03716]
[1742095574833,10.85542241,1928.5,1928.4,1.0371]
[1742095575033,6.51035241,1928.5,1928.4,1.0371]
[1742095575228,5.57942525,1928.5,1928.4,1.0371]
[1742095575635,4.5752,1928.5,1928.4,1.0371]
[1742095576134,5.61225,1928.5,1928.4,1.0371]
[1742095576436,8.95830241,1928.5,1928.4,1.0371]
[1742095576627,7.92125241,1928.5,1928.4,1.0371]
[1742095577430,8.95830241,1928.5,1928.4,1.0371]
[1742095578929,5.75050241,1928.5,1928.4,1.0371]
[1742095579132,3.81535,1928.5,1928.4,1.0371]
[1742095580038,2.7783,1928.5,1928.4,1.0371]
[1742095580538,3.81535,1928.5,1928.4,1.0371]
[1742095580839,1.4109,1928.5,1928.4,1.0371]
[1742095581034,1.00422525,1928.6,1928.4,1.0371]
[1742095581241,2.3525,1928.6,1928.5,3.11765]
[1742095582037,1.3155,1928.6,1928.5,3.11765]
[1742095582225,2.3525,1928.6,1928.5,3.11765]
[1742095583027,1.3155,1928.6,1928.5,3.11765]
[1742095584139,2.3525,1928.6,1928.5,3.11765]
[1742095584433,1.3155,1928.6,1928.5,3.11765]
[1742095584639,2.3525,1928.6,1928.5,3.11765]
[1742095584837,1.03705,1928.5,1928.4,1.03707]
[1742095585037,3.79005,1928.5,1928.4,1.03707]
[1742095586341,2.753,1928.5,1928.4,1.03707]
[1742095586843,3.79005,1928.5,1928.4,1.03707]
[1742095587038,2.753,1928.5,1928.4,1.03707]
[1742095587238,2.753,1928.5,1928.4,1.74557]
[1742095587837,1.3551,1928.5,1928.4,1.74557]
[1742095589229,2.39215,1928.5,1928.4,1.74557]
[1742095591343,2.39215,1928.5,1928.4,1.03707]
[1742095591936,1.0371,1928.4,1928.3,1.03712]
[1742095592241,3.7553,1928.4,1928.3,1.03712]
[1742095592540,1.03716,1928.3,1928.2,2.0558]
[1742095592740,2.42146,1928.3,1928.2,2.0558]
[1742095592940,1.3843,1928.3,1928.2,3.09298]
[1742095593840,2.42146,1928.3,1928.2,3.09298]
[1742095594736,1.3843,1928.3,1928.2,3.09298]
[1742095595047,2.42146,1928.3,1928.2,2.40618]
[1742095595735,1.03721,1928.2,1928.0,0.6621]
[1742095595935,2.48171,1928.2,1928.1,1.03723]
[1742095596344,2.48171,1928.2,1928.1,2.38743]
[1742095596534,2.48171,1928.2,1928.1,1.03723]
[1742095597144,1.4445,1928.2,1928.1,1.03723]
[1742095597346,1.4445,1928.2,1928.1,2.38743]
[1742095603050,2.60739312,1928.4,1928.3,1.03716]
[1742095603249,1.00410131,1928.4,1928.3,1.03716]
[1742095603652,1.00410131,1928.4,1928.3,1.70016]
[1742095603948,1.037,1928.6,1928.5,1.03705]
[1742095604449,2.4054,1928.6,1928.5,1.03705]
[1742095605651,1.3684,1928.6,1928.5,1.03705]
[1742095606047,2.4054,1928.6,1928.5,1.03705]
[1742095607050,2.4054,1928.6,1928.5,1.75005]
[1742095612146,2.4054,1928.6,1928.5,0.54391316]
[1742095612858,2.4054,1928.6,1928.5,1.58096316]
[1742095613159,3.2078,1929.1,1929.0,1.03678]
[1742095613357,4.5649,1929.1,1929.0,1.03678]
[1742095616059,4.5649,1929.1,1929.0,2.35268]
[1742095620565,4.5649,1929.1,1928.9,1.04458746]
[1742095620769,2.43408,1929.0,1928.9,2.36868746]
[1742095620961,1.3973,1929.0,1928.9,2.36868746]
[1742095623860,3.2078,1929.1,1929.0,1.03678]
[1742095624065,4.5594,1929.1,1929.0,3.17898]
[1742095624465,3.2078,1929.1,1929.0,3.17898]
[1742095624663,1.3516,1929.5,1929.4,1.03657]
[1742095625257,1.3516,1929.5,1929.4,2.46387]
[1742095631974,2.38811,1929.5,1929.4,1.03657]
[1742095633875,2.38811,1929.5,1929.3,1.3641]
[1742095633876,1.03657,1929.4,1929.3,1.0366]
[1742095634171,3.16767,1929.4,1929.3,1.0366]
[1742095634371,3.88027,1929.4,1929.3,1.0366]
[1742095635980,3.88027,1929.4,1929.2,5.9387]
[1742095635981,1.03662,1929.3,1929.2,6.97535]
[1742095636281,2.38362,1929.3,1929.2,4.5676]
[1742095636575,2.38362,1929.3,1929.2,3.2078]
[1742095637570,1.03673,1929.1,1929.0,4.5774]
[1742095637772,1.03678,1929.0,1928.9,1.04456746]
[1742095637969,3.76798,1929.0,1928.9,1.04456746]
[1742095638976,2.7312,1929.0,1928.9,1.04456746]
[1742095639171,3.76798,1929.0,1928.9,0.00777746]
[1742095639972,2.7312,1929.0,1928.9,1.04460746]
[1742095640172,3.76798,1929.0,1928.9,1.04460746]
[1742095642881,2.7312,1929.0,1928.9,1.04460746]
[1742095644977,3.76798,1929.0,1928.9,1.04460746]
[1742095653602,3.76798,1929.0,1928.9,0.00777746]
[1742095653803,3.76798,1929.0,1928.9,1.04460746]
[1742095655605,3.76798,1929.0,1928.9,0.00777746]
[1742095655795,1.03696,1928.7,1928.6,1.03696]
[1742095655999,1.03696,1928.7,1928.6,2.43746]
[1742095656701,2.37766,1928.7,1928.6,2.43746]
[1742095658505,1.3407,1928.7,1928.6,2.43746]
[1742095659003,2.7592,1928.7,1928.6,2.43746]
[1742095659305,3.79614,1928.7,1928.6,2.43746]
[1742095660200,3.79614,1928.7,1928.6,1.4005]
[1742095660500,3.79614,1928.7,1928.6,2.4375]
[1742095666012,3.79614,1928.7,1928.6,1.037]
[1742095677215,0.00770941,1928.8,1928.7,1.03694]
[1742095677418,1.38530941,1928.8,1928.7,3.85114]
[1742095678827,0.00770941,1928.8,1928.7,3.85114]
[1742095681820,3.2078,1929.3,1928.9,2.59203]
[1742095682019,1.3485,1929.2,1929.1,1.03673]
[1742095682214,3.2078,1929.3,1929.2,1.03667]
[1742095682429,4.5563,1929.3,1929.2,1.03667]
[1742095682822,3.2078,1929.3,1929.2,1.03667]
[1742095683335,1.3485,1929.5,1929.4,1.03657]
[1742095683722,10.6850565,1929.6,1929.5,1.03651]
[1742095683921,1.71804,1929.7,1929.6,1.03646]
[1742095684229,1.03647,1929.6,1929.5,1.03647]
[1742095684432,1.71805,1929.7,1929.4,0.7023]
[1742095684729,1.71805,1929.7,1929.5,1.03651]
[1742095684927,1.71805,1929.7,1929.6,1.03646]
[1742095685730,1.03646,1929.6,1929.5,1.03647]
[1742095685933,1.71805,1929.7,1929.6,1.03646]
[1742095686131,1.71804,1929.7,1929.5,1.03651]
[1742095686431,0.663,1929.6,1929.5,1.03651]
[1742095688239,1.03651,1929.5,1929.4,1.03654]
[1742095691934,0.663,1929.6,1929.2,7.20548]
[1742095692927,1.03652,1929.5,1929.2,7.20548]
[1742095693632,1.03652,1929.5,1929.4,1.03657]
[1742095695034,1.03652,1929.5,1929.2,4.6138]
[1742095695242,0.6759,1929.4,1929.3,1.03662]
[1742095695928,2.0682,1929.4,1929.3,2.43282]
[1742095696939,3.10477,1929.4,1929.3,2.43282]
[1742095697131,2.0682,1929.4,1929.3,2.43282]
[1742095708942,3.10477,1929.4,1929.3,2.43282]
[1742095709246,2.0682,1929.4,1929.3,2.43282]
[1742095710345,3.10477,1929.4,1929.3,2.43282]
[1742095710541,2.0682,1929.4,1929.3,2.43282]
[1742095711245,3.10477,1929.4,1929.3,2.43282]
[1742095712038,2.0682,1929.4,1929.3,2.43282]
[1742095713148,3.10477,1929.4,1929.3,2.43282]
[1742095714147,2.0682,1929.4,1929.3,2.43282]
[1742095721457,3.10477,1929.4,1929.3,1.03662]
[1742095721653,3.10477,1929.4,1929.3,2.40332]
[1742095721950,3.10477,1929.4,1929.3,1.3667]
[1742095722158,3.10477,1929.4,1929.0,9.10372]
[1742095722159,1.03673,1929.1,1929.0,3.2078]
[1742095723151,1.76163,1929.1,1929.0,3.2078]
[1742095723453,0.7249,1929.1,1929.0,4.24458]
[1742095724159,2.0874,1929.1,1929.0,4.24458]
[1742095724657,3.12413,1929.1,1929.0,4.24458]
[1742095727258,2.0874,1929.1,1929.0,4.24458]
[1742095727661,3.12413,1929.1,1929.0,4.24458]
[1742095727959,2.0874,1929.1,1929.0,4.24458]
[1742095728260,3.12413,1929.1,1929.0,4.24458]
[1742095729755,2.0874,1929.1,1929.0,4.24458]
[1742095730155,3.12413,1929.1,1929.0,4.24458]
[1742095731448,3.12413,1929.1,1929.0,1.03678]
[1742095731962,3.12413,1929.1,1929.0,2.43828]
[1742095737967,2.0874,1929.1,1929.0,2.43828]
[1742095740170,3.12413,1929.1,1929.0,2.43828]
[1742095741263,2.0874,1929.1,1929.0,2.43828]
[1742095741870,1.3625,1929.1,1929.0,2.43828]
[1742095743175,2.39923,1929.1,1929.0,2.43828]
[1742095743771,1.3625,1929.1,1929.0,2.43828]
[1742095750180,1.01208862,1929.4,1929.1,2.59179]
[1742095750383,1.01208862,1929.4,1929.3,1.03662]
[1742095750781,2.40224,1929.5,1929.4,1.03657]
[1742095750982,1.03654,1929.5,1929.4,1.03657]
[1742095751184,1.72674,1929.5,1929.4,1.03657]
[1742095753490,0.6902,1929.5,1929.4,1.03657]
[1742095753898,1.72671,1929.5,1929.4,1.03657]
[1742095754095,0.6902,1929.5,1929.4,1.03657]
[1742095754996,0.6902,1929.5,1929.4,2.42347]
[1742095755390,1.72671,1929.5,1929.4,2.42347]
[1742095756091,0.6902,1929.5,1929.4,2.42347]
[1742095756495,2.74541862,1929.7,1929.6,1.03646]
[1742095756699,2.42703,1929.7,1929.6,1.03646]
[1742095756997,3.43911862,1929.7,1929.6,1.03646]
[1742095757196,3.43911862,1929.7,1929.6,2.42336]
[1742095760401,2.42703,1929.7,1929.6,2.42336]
[1742095762500,1.03646,1929.6,1929.5,2.3745]
[1742095762695,1.03651,1929.5,1929.4,2.35582]
[1742095762897,1.03657,1929.4,1929.3,3.2078]
[1742095763096,1.75317,1929.4,1929.3,3.2078]
[1742095763303,1.75317,1929.4,1929.3,4.24442]
[1742095763504,2.43517,1929.4,1929.3,4.24442]
[1742095763701,2.43517,1929.4,1929.3,3.2078]
[1742095765306,1.03662,1929.3,1929.2,4.24443]
[1742095766307,1.03662,1929.3,1929.2,1.03663]
[1742095766607,2.41862,1929.3,1929.2,1.03663]
[1742095766801,2.41862,1929.3,1929.2,4.24443]
[1742095768208,2.41862,1929.3,1929.2,1.03663]
[1742095768505,2.41862,1929.3,1929.2,4.24443]
[1742095772409,1.382,1929.3,1929.2,4.24443]
[1742095772602,1.382,1929.3,1929.2,4.95893]
[1742095774413,2.41862,1929.3,1929.2,4.95893]
[1742095778211,2.41862,1929.3,1929.2,1.75113]
[1742095779603,2.41862,1929.3,1929.2,3.09233]
[1742095779809,1.382,1929.3,1929.2,3.09233]
[1742095780105,2.41862,1929.3,1929.2,3.09233]
[1742095780504,1.382,1929.3,1929.2,3.09233]
[1742095782216,5.79895,1929.6,1929.2,4.64736]
[1742095782217,3.2078,1929.6,1929.2,4.64736]
[1742095782419,3.2078,1929.6,1929.5,1.03651]
[1742095782714,4.24427,1929.6,1929.5,1.03651]
[1742095783614,5.58227,1929.6,1929.5,1.03651]
[1742095783814,1.03651,1929.5,1929.4,1.337]
[1742095784009,3.74061,1929.5,1929.4,1.337]
[1742095784417,2.7041,1929.5,1929.4,2.37357]
[1742095784807,3.74061,1929.5,1929.4,2.37357]
[1742095785406,2.7041,1929.5,1929.4,2.37357]
[1742095785817,3.74061,1929.5,1929.4,2.37357]
[1742095786606,3.74061,1929.5,1929.4,1.337]
[1742095787012,2.7041,1929.5,1929.2,0.7145]
[1742095787213,2.37671,1929.4,1929.3,1.0366]
[1742095787413,2.37671,1929.4,1929.3,1.3146]
[1742095788816,2.37671,1929.4,1929.3,2.35122]
[1742095789020,1.03664,1929.3,1929.1,3.9123]
[1742095789214,2.47944,1929.3,1929.2,2.44083]
[1742095790117,1.03667,1929.2,1929.1,5.64369]
[1742095790420,3.85307,1929.2,1929.1,4.24449]
[1742095792618,3.85307,1929.2,1929.1,1.03669]
[1742095793018,3.85307,1929.2,1929.1,2.42029]
[1742095799229,2.47947,1929.2,1929.1,2.42029]
[1742095801034,1.4428,1929.2,1929.1,2.42029]
[1742095801336,1.73698505,1929.4,1929.3,1.03662]